[Event "*** Titled Tuesday Blitz"]
[Site "Chess.com"]
[Date "2020.12.01"]
[Round "7"]
[White "jacky72"]
[Black "DraG0s3L"]
[Result "1-0"]
[WhiteElo "2723"]
[BlackElo "2546"]
[TimeControl "180+1"]
[EndTime "11:14:20 PST"]
[Termination "jacky72 won by resignation"]

1. d4 {[%clk 0:03:00.9]} 1... Nf6 {[%clk 0:02:58.8]} 2. c4 {[%clk 0:03:01.3]}
2... e6 {[%clk 0:02:59.1]} 3. Nf3 {[%clk 0:03:01.5]} 3... d5 {[%clk 0:02:59.3]}
4. Nc3 {[%clk 0:03:01.9]} 4... Be7 {[%clk 0:02:59.6]} 5. Bg5 {[%clk 0:03:01.9]}
5... O-O {[%clk 0:02:59.8]} 6. cxd5 {[%clk 0:03:02.4]} 6... exd5 {[%clk
0:02:59.2]} 7. Qc2 {[%clk 0:03:02.9]} 7... c6 {[%clk 0:02:56.4]} 8. e3 {[%clk
0:03:03.2]} 8... h6 {[%clk 0:02:56]} 9. Bh4 {[%clk 0:03:03]} 9... Nbd7 {[%clk
0:02:56.4]} 10. Bd3 {[%clk 0:03:01.3]} 10... Re8 {[%clk 0:02:56.8]} 11. h3
{[%clk 0:02:59.4]} 11... Ne4 {[%clk 0:02:56.1]} 12. Bxe7 {[%clk 0:02:58.4]}
12... Qxe7 {[%clk 0:02:57]} 13. Bxe4 {[%clk 0:02:57.9]} 13... dxe4 {[%clk
0:02:57.9]} 14. Nd2 {[%clk 0:02:58.8]} 14... Nf6 {[%clk 0:02:57.6]} 15. O-O
{[%clk 0:02:57.6]} 15... Bf5 {[%clk 0:02:53.2]} 16. Rab1 {[%clk 0:02:56.1]}
16... Qd7 {[%clk 0:02:46.8]} 17. Kh2 {[%clk 0:02:50.7]} 17... Qd6+ {[%clk
0:02:44.8]} 18. Kg1 {[%clk 0:02:50.6]} 18... Qd7 {[%clk 0:02:44.9]} 19. Rfc1
{[%clk 0:02:29.5]} 19... a5 {[%clk 0:02:01.8]} 20. Nf1 {[%clk 0:02:27.1]} 20...
Be6 {[%clk 0:01:56.9]} 21. Na4 {[%clk 0:02:26.1]} 21... Bxa2 {[%clk 0:01:38.8]}
22. Ra1 {[%clk 0:02:25.3]} 22... Bd5 {[%clk 0:01:28.2]} 23. Nb6 {[%clk
0:02:24.4]} 23... Qc7 {[%clk 0:01:27.9]} 24. Nxa8 {[%clk 0:02:24.3]} 24... Rxa8
{[%clk 0:01:28.8]} 25. Qc5 {[%clk 0:02:24.3]} 25... a4 {[%clk 0:01:27.1]} 26.
Nd2 {[%clk 0:02:22.4]} 26... Qd8 {[%clk 0:01:24.4]} 27. Nc4 {[%clk 0:02:21.8]}
27... b5 {[%clk 0:01:20.9]} 28. Nb6 {[%clk 0:02:17.3]} 28... Rb8 {[%clk
0:01:20.2]} 29. Nxd5 {[%clk 0:02:17.4]} 29... cxd5 {[%clk 0:01:20]} 30. Qc7
{[%clk 0:02:17.9]} 30... Qe8 {[%clk 0:01:18.6]} 31. Rc6 {[%clk 0:02:15.8]} 31...
Kh7 {[%clk 0:01:13.4]} 32. Rac1 {[%clk 0:02:15.8]} 32... b4 {[%clk 0:01:12.1]}
33. Qa7 {[%clk 0:02:14.8]} 33... a3 {[%clk 0:01:09.9]} 34. bxa3 {[%clk
0:02:15.2]} 34... b3 {[%clk 0:01:10.3]} 35. Qc5 {[%clk 0:02:13.5]} 35... b2
{[%clk 0:00:50.8]} 36. Rb1 {[%clk 0:02:13.5]} 36... Rb3 {[%clk 0:00:50.8]} 37.
a4 {[%clk 0:01:58.7]} 37... Qa8 {[%clk 0:00:44.6]} 38. a5 {[%clk 0:01:56.2]}
38... Qb8 {[%clk 0:00:14.3]} 39. Rb6 {[%clk 0:01:55.1]} 39... Rxb6 {[%clk
0:00:14.4]} 40. Qxb6 {[%clk 0:01:55.3]} 1-0

[Event "*** Titled Tuesday Blitz"]
[Site "Chess.com"]
[Date "2020.12.01"]
[Round "7"]
[White "woodhy"]
[Black "FMalexhdez"]
[Result "1-0"]
[WhiteElo "2463"]
[BlackElo "2296"]
[TimeControl "180+1"]
[EndTime "11:14:21 PST"]
[Termination "woodhy won by resignation"]

1. e4 {[%clk 0:02:54.8]} 1... c5 {[%clk 0:02:57.7]} 2. Nf3 {[%clk 0:02:54.7]}
2... d6 {[%clk 0:02:57.8]} 3. d4 {[%clk 0:02:54.7]} 3... cxd4 {[%clk 0:02:58.4]}
4. Nxd4 {[%clk 0:02:54.6]} 4... Nf6 {[%clk 0:02:59.1]} 5. f3 {[%clk 0:02:53.3]}
5... a6 {[%clk 0:02:59.3]} 6. c4 {[%clk 0:02:51.6]} 6... e5 {[%clk 0:02:59.2]}
7. Nc2 {[%clk 0:02:50.8]} 7... Be6 {[%clk 0:02:56]} 8. Nc3 {[%clk 0:02:51.7]}
8... Nbd7 {[%clk 0:02:55.6]} 9. Be3 {[%clk 0:02:51.4]} 9... Rc8 {[%clk
0:02:55.6]} 10. b3 {[%clk 0:02:48.7]} 10... Be7 {[%clk 0:02:54.3]} 11. Rc1
{[%clk 0:02:45.2]} 11... O-O {[%clk 0:02:26.7]} 12. Bd3 {[%clk 0:02:46.1]} 12...
Qa5 {[%clk 0:02:24.7]} 13. Qd2 {[%clk 0:02:36.6]} 13... b5 {[%clk 0:02:22.7]}
14. O-O {[%clk 0:02:20.2]} 14... bxc4 {[%clk 0:02:04.1]} 15. Nd5 {[%clk
0:02:16.1]} 15... Qd8 {[%clk 0:01:19.3]} 16. Bxc4 {[%clk 0:02:15.1]} 16... Nxd5
{[%clk 0:01:16]} 17. Bxd5 {[%clk 0:02:16]} 17... Bxd5 {[%clk 0:01:00.5]} 18.
Qxd5 {[%clk 0:02:16.9]} 18... Nb6 {[%clk 0:00:54.8]} 19. Qa5 {[%clk 0:02:07.1]}
19... Nd7 {[%clk 0:00:36.9]} 20. Qd2 {[%clk 0:01:58]} 20... f5 {[%clk
0:00:35.5]} 21. exf5 {[%clk 0:01:56.6]} 21... Rxf5 {[%clk 0:00:35.2]} 22. Nb4
{[%clk 0:01:56.5]} 22... Rxc1 {[%clk 0:00:31.4]} 23. Rxc1 {[%clk 0:01:56.3]}
23... Rh5 {[%clk 0:00:29]} 24. Qd5+ {[%clk 0:01:47.1]} 24... Kf8 {[%clk
0:00:14.1]} 25. Nxa6 {[%clk 0:01:40.9]} 25... Nc5 {[%clk 0:00:11.5]} 26. Nxc5
{[%clk 0:01:38.2]} 26... dxc5 {[%clk 0:00:11.5]} 27. Qxd8+ {[%clk 0:01:38.8]}
27... Bxd8 {[%clk 0:00:11.1]} 28. Bxc5+ {[%clk 0:01:39.7]} 28... Ke8 {[%clk
0:00:11.1]} 29. b4 {[%clk 0:01:39.7]} 29... Rf5 {[%clk 0:00:07.9]} 30. a4 {[%clk
0:01:38.7]} 30... Rf4 {[%clk 0:00:07.8]} 31. a5 {[%clk 0:01:37.6]} 31... Kd7
{[%clk 0:00:07.9]} 32. a6 {[%clk 0:01:37.2]} 1-0

[Event "*** Titled Tuesday Blitz"]
[Site "Chess.com"]
[Date "2020.12.01"]
[Round "7"]
[White "amatatanav"]
[Black "Roza_Idrisova"]
[Result "0-1"]
[WhiteElo "2393"]
[BlackElo "2196"]
[TimeControl "180+1"]
[EndTime "11:14:24 PST"]
[Termination "Roza_Idrisova won by checkmate"]

1. e4 {[%clk 0:03:00.9]} 1... c6 {[%clk 0:02:59]} 2. Nc3 {[%clk 0:03:00.4]} 2...
d5 {[%clk 0:02:59.1]} 3. Nf3 {[%clk 0:03:01.3]} 3... a6 {[%clk 0:02:58.7]} 4. d4
{[%clk 0:02:53.4]} 4... Bg4 {[%clk 0:02:58]} 5. Bd3 {[%clk 0:02:53.1]} 5... e6
{[%clk 0:02:57.8]} 6. h3 {[%clk 0:02:51.9]} 6... Bh5 {[%clk 0:02:57.3]} 7. O-O
{[%clk 0:02:52.1]} 7... Nf6 {[%clk 0:02:56.8]} 8. Re1 {[%clk 0:02:51.7]} 8...
Be7 {[%clk 0:02:56.6]} 9. Bg5 {[%clk 0:02:06.3]} 9... dxe4 {[%clk 0:02:51.3]}
10. Nxe4 {[%clk 0:02:04.4]} 10... Nbd7 {[%clk 0:02:43.6]} 11. c3 {[%clk
0:01:54.6]} 11... O-O {[%clk 0:02:42.7]} 12. Qb3 {[%clk 0:01:33.7]} 12... Bxf3
{[%clk 0:02:38.7]} 13. gxf3 {[%clk 0:01:34.6]} 13... b5 {[%clk 0:02:28.9]} 14.
Kh1 {[%clk 0:01:27.3]} 14... Nd5 {[%clk 0:02:28.3]} 15. Bd2 {[%clk 0:01:15.2]}
15... N7f6 {[%clk 0:02:21.8]} 16. Rg1 {[%clk 0:01:13]} 16... Kh8 {[%clk
0:02:21.2]} 17. a4 {[%clk 0:01:06]} 17... Nh5 {[%clk 0:02:15.8]} 18. Rae1 {[%clk
0:00:43.1]} 18... Nhf4 {[%clk 0:02:09.5]} 19. Bf1 {[%clk 0:00:42.8]} 19... f5
{[%clk 0:02:02.7]} 20. Ng3 {[%clk 0:00:39.4]} 20... Bd6 {[%clk 0:01:59.5]} 21.
Ne2 {[%clk 0:00:31.8]} 21... Nd3 {[%clk 0:01:41]} 22. Ra1 {[%clk 0:00:16]} 22...
Nxf2+ {[%clk 0:01:37]} 23. Kg2 {[%clk 0:00:16.1]} 23... Qh4 {[%clk 0:01:25.4]}
24. Be1 {[%clk 0:00:14]} 24... Ne3# {[%clk 0:01:10.9]} 0-1

[Event "*** Titled Tuesday Blitz"]
[Site "Chess.com"]
[Date "2020.12.01"]
[Round "7"]
[White "Road2GM3000"]
[Black "Blitzking642"]
[Result "1-0"]
[WhiteElo "2132"]
[BlackElo "2220"]
[TimeControl "180+1"]
[EndTime "11:14:24 PST"]
[Termination "Road2GM3000 won by resignation"]

1. d4 {[%clk 0:02:59.8]} 1... Nf6 {[%clk 0:02:59.5]} 2. c4 {[%clk 0:03:00.4]}
2... e6 {[%clk 0:02:59.1]} 3. Nc3 {[%clk 0:03:00.9]} 3... Bb4 {[%clk 0:02:59.1]}
4. Nf3 {[%clk 0:03:01.8]} 4... b6 {[%clk 0:02:57.8]} 5. Bg5 {[%clk 0:03:00.9]}
5... Bb7 {[%clk 0:02:53.5]} 6. Nd2 {[%clk 0:02:59.7]} 6... h6 {[%clk 0:02:49.7]}
7. Bh4 {[%clk 0:02:59.6]} 7... Be7 {[%clk 0:02:41.2]} 8. f3 {[%clk 0:02:54.9]}
8... d5 {[%clk 0:02:31.6]} 9. cxd5 {[%clk 0:02:50.4]} 9... exd5 {[%clk
0:02:29.1]} 10. e3 {[%clk 0:02:47]} 10... O-O {[%clk 0:02:29.5]} 11. Bd3 {[%clk
0:02:46.1]} 11... c5 {[%clk 0:02:29.3]} 12. O-O {[%clk 0:02:45.4]} 12... Re8
{[%clk 0:02:29.7]} 13. Kh1 {[%clk 0:02:20.5]} 13... Nc6 {[%clk 0:02:29]} 14.
dxc5 {[%clk 0:02:17.4]} 14... bxc5 {[%clk 0:02:25.3]} 15. e4 {[%clk 0:02:17.6]}
15... dxe4 {[%clk 0:02:07.7]} 16. Ndxe4 {[%clk 0:02:07.4]} 16... Nxe4 {[%clk
0:02:07.7]} 17. Bxe7 {[%clk 0:02:07.3]} 17... Rxe7 {[%clk 0:02:04.7]} 18. Bxe4
{[%clk 0:02:06.4]} 18... Nd4 {[%clk 0:02:02.3]} 19. Bxb7 {[%clk 0:02:03.6]}
19... Rxb7 {[%clk 0:02:01.7]} 20. b3 {[%clk 0:01:58.8]} 20... Rd7 {[%clk
0:01:58.4]} 21. Ne4 {[%clk 0:01:52.8]} 21... Nf5 {[%clk 0:01:50.3]} 22. Qc1
{[%clk 0:01:49.3]} 22... Rc8 {[%clk 0:01:41.4]} 23. Qc3 {[%clk 0:01:45.7]} 23...
Rd3 {[%clk 0:01:39]} 24. Qe5 {[%clk 0:01:42.5]} 24... Rd5 {[%clk 0:01:36.2]} 25.
Qf4 {[%clk 0:01:40.5]} 25... g5 {[%clk 0:01:25.3]} 26. Qg4 {[%clk 0:01:36.4]}
26... Ne3 {[%clk 0:01:24.7]} 27. Qh5 {[%clk 0:01:35.4]} 27... Nxf1 {[%clk
0:01:23.2]} 28. Qxh6 {[%clk 0:01:32.2]} 28... Rd1 {[%clk 0:00:29.1]} 29. Rxd1
{[%clk 0:01:29.1]} 29... Ng3+ {[%clk 0:00:28.9]} 30. hxg3 {[%clk 0:01:25]} 30...
Qxd1+ {[%clk 0:00:29.8]} 31. Kh2 {[%clk 0:01:25.3]} 31... f5 {[%clk 0:00:30]}
32. Qg6+ {[%clk 0:01:21]} 32... Kh8 {[%clk 0:00:28.4]} 33. Qf6+ {[%clk
0:01:14.7]} 33... Kh7 {[%clk 0:00:26.5]} 34. Nxg5+ {[%clk 0:01:14.2]} 1-0

[Event "*** Titled Tuesday Blitz"]
[Site "Chess.com"]
[Date "2020.12.01"]
[Round "7"]
[White "Luklei18"]
[Black "Semetey"]
[Result "0-1"]
[WhiteElo "2433"]
[BlackElo "2592"]
[TimeControl "180+1"]
[EndTime "11:14:25 PST"]
[Termination "Semetey won on time"]

1. c4 {[%clk 0:03:00.9]} 1... e5 {[%clk 0:02:58.2]} 2. Nc3 {[%clk 0:03:01.1]}
2... Nf6 {[%clk 0:02:58.7]} 3. Nf3 {[%clk 0:03:01.5]} 3... Nc6 {[%clk
0:02:57.7]} 4. e3 {[%clk 0:03:01.9]} 4... Bb4 {[%clk 0:02:57.5]} 5. Qc2 {[%clk
0:03:02.5]} 5... d6 {[%clk 0:02:55.6]} 6. Nd5 {[%clk 0:03:02.3]} 6... Bc5 {[%clk
0:02:55]} 7. a3 {[%clk 0:03:02.2]} 7... a5 {[%clk 0:02:55.1]} 8. b3 {[%clk
0:03:02.1]} 8... Nxd5 {[%clk 0:02:53.7]} 9. cxd5 {[%clk 0:03:02.5]} 9... Ne7
{[%clk 0:02:54.4]} 10. e4 {[%clk 0:02:59.4]} 10... f5 {[%clk 0:02:52.1]} 11. d3
{[%clk 0:02:59.1]} 11... O-O {[%clk 0:02:50.8]} 12. Be2 {[%clk 0:02:43.2]} 12...
Ng6 {[%clk 0:02:43.8]} 13. Bg5 {[%clk 0:02:39.6]} 13... Qe8 {[%clk 0:02:41.7]}
14. h4 {[%clk 0:02:39.8]} 14... fxe4 {[%clk 0:02:38.6]} 15. dxe4 {[%clk
0:02:36.9]} 15... Nf4 {[%clk 0:02:39.1]} 16. Bxf4 {[%clk 0:01:57.6]} 16... Rxf4
{[%clk 0:02:40]} 17. g3 {[%clk 0:01:56.8]} 17... Rf6 {[%clk 0:02:26.5]} 18. Rh2
{[%clk 0:01:27.4]} 18... h6 {[%clk 0:02:07.5]} 19. Ng1 {[%clk 0:01:22.4]} 19...
Qg6 {[%clk 0:01:58.4]} 20. Bd3 {[%clk 0:00:50.1]} 20... Bg4 {[%clk 0:01:54.9]}
21. Ne2 {[%clk 0:00:22.1]} 21... Raf8 {[%clk 0:01:51.7]} 22. f4 {[%clk
0:00:11.2]} 22... Bxe2 {[%clk 0:01:45.9]} 23. Qxe2 {[%clk 0:00:08.8]} 23...
Qxg3+ {[%clk 0:01:45.9]} 24. Kd1 {[%clk 0:00:09.3]} 24... Rxf4 {[%clk
0:01:45.2]} 25. Rg2 {[%clk 0:00:08.9]} 25... Rf1+ {[%clk 0:01:40]} 26. Kc2
{[%clk 0:00:04.4]} 26... Qxg2 {[%clk 0:01:32.7]} 0-1

[Event "*** Titled Tuesday Blitz"]
[Site "Chess.com"]
[Date "2020.12.01"]
[Round "7"]
[White "Shield12"]
[Black "DrVelja"]
[Result "0-1"]
[WhiteElo "2918"]
[BlackElo "2807"]
[TimeControl "180+1"]
[EndTime "11:14:30 PST"]
[Termination "DrVelja won by resignation"]

1. e4 {[%clk 0:03:00.9]} 1... c5 {[%clk 0:03:00.6]} 2. Nf3 {[%clk 0:03:01.5]}
2... Nc6 {[%clk 0:03:01.2]} 3. Bb5 {[%clk 0:03:02.1]} 3... g6 {[%clk 0:03:01.9]}
4. Bxc6 {[%clk 0:03:02.7]} 4... bxc6 {[%clk 0:03:02.8]} 5. O-O {[%clk
0:03:03.3]} 5... Bg7 {[%clk 0:03:03.5]} 6. Re1 {[%clk 0:03:04]} 6... Qc7 {[%clk
0:03:04.2]} 7. c3 {[%clk 0:03:03.4]} 7... d6 {[%clk 0:03:04.8]} 8. h3 {[%clk
0:03:01.9]} 8... Nf6 {[%clk 0:03:04.5]} 9. d4 {[%clk 0:03:01.8]} 9... cxd4
{[%clk 0:03:05.4]} 10. cxd4 {[%clk 0:03:02.7]} 10... O-O {[%clk 0:03:06.1]} 11.
Nc3 {[%clk 0:03:02.9]} 11... c5 {[%clk 0:03:06.7]} 12. dxc5 {[%clk 0:02:48.3]}
12... dxc5 {[%clk 0:03:07.6]} 13. e5 {[%clk 0:02:45.8]} 13... Rd8 {[%clk
0:03:08]} 14. Qa4 {[%clk 0:02:45.3]} 14... Nh5 {[%clk 0:03:08.6]} 15. Qh4 {[%clk
0:02:39.5]} 15... Bb7 {[%clk 0:02:54.5]} 16. Ne4 {[%clk 0:02:38.7]} 16... Bxe5
{[%clk 0:02:39.3]} 17. Nxe5 {[%clk 0:02:25.4]} 17... Qxe5 {[%clk 0:02:40.2]} 18.
Bg5 {[%clk 0:02:26]} 18... Rd4 {[%clk 0:02:28.5]} 19. Nc3 {[%clk 0:02:04.2]}
19... Qf5 {[%clk 0:02:15.8]} 20. f4 {[%clk 0:01:46.5]} 20... f6 {[%clk
0:01:44.6]} 21. Bh6 {[%clk 0:01:46.3]} 21... e5 {[%clk 0:01:25.7]} 22. g4 {[%clk
0:01:42.6]} 22... Qc2 {[%clk 0:01:17.7]} 23. Re2 {[%clk 0:01:42.4]} 23... Rd2
{[%clk 0:01:10.5]} 24. Rae1 {[%clk 0:01:40.7]} 24... Rxe2 {[%clk 0:00:51.1]} 25.
Rxe2 {[%clk 0:01:40.5]} 25... Qc1+ {[%clk 0:00:51.6]} 26. Re1 {[%clk 0:01:24.7]}
26... Qd2 {[%clk 0:00:36.3]} 27. Ne2 {[%clk 0:01:20.7]} 27... Qd5 {[%clk
0:00:35.2]} 0-1

[Event "*** Titled Tuesday Blitz"]
[Site "Chess.com"]
[Date "2020.12.01"]
[Round "7"]
[White "nubair1198"]
[Black "Konavets"]
[Result "1-0"]
[WhiteElo "2832"]
[BlackElo "2995"]
[TimeControl "180+1"]
[EndTime "11:14:31 PST"]
[Termination "nubair1198 won by resignation"]

1. Nf3 {[%clk 0:02:49.4]} 1... g6 {[%clk 0:02:59.5]} 2. d4 {[%clk 0:02:48.3]}
2... Nf6 {[%clk 0:02:58.4]} 3. c4 {[%clk 0:02:48.1]} 3... Bg7 {[%clk 0:02:58.9]}
4. Nc3 {[%clk 0:02:48.6]} 4... d5 {[%clk 0:02:59.3]} 5. h4 {[%clk 0:02:46.7]}
5... c6 {[%clk 0:02:54.2]} 6. cxd5 {[%clk 0:02:46.3]} 6... cxd5 {[%clk
0:02:52.7]} 7. Bf4 {[%clk 0:02:46.9]} 7... Nc6 {[%clk 0:02:51.3]} 8. e3 {[%clk
0:02:47.3]} 8... O-O {[%clk 0:02:51.5]} 9. Qb3 {[%clk 0:02:47.5]} 9... Na5
{[%clk 0:02:48.2]} 10. Qb4 {[%clk 0:02:47.8]} 10... Nc6 {[%clk 0:02:47]} 11. Qb3
{[%clk 0:02:48.4]} 11... Na5 {[%clk 0:02:44.4]} 12. Qb4 {[%clk 0:02:48.9]} 12...
b6 {[%clk 0:02:43.3]} 13. Ne5 {[%clk 0:02:47.4]} 13... Bb7 {[%clk 0:02:43.1]}
14. Be2 {[%clk 0:02:46.9]} 14... Rc8 {[%clk 0:02:42.7]} 15. O-O {[%clk
0:02:46.3]} 15... Ne8 {[%clk 0:02:24.9]} 16. Rfc1 {[%clk 0:02:44.7]} 16... Nd6
{[%clk 0:02:25.2]} 17. Nb5 {[%clk 0:02:44.5]} 17... Nxb5 {[%clk 0:02:23.5]} 18.
Bxb5 {[%clk 0:02:44.9]} 18... e6 {[%clk 0:02:20.3]} 19. h5 {[%clk 0:02:37.4]}
19... Qh4 {[%clk 0:02:13.1]} 20. g3 {[%clk 0:01:08.3]} 20... Qxh5 {[%clk
0:01:54.2]} 21. Qe7 {[%clk 0:01:06.7]} 21... Qf5 {[%clk 0:01:11.4]} 22. g4
{[%clk 0:01:00.1]} 22... Qf6 {[%clk 0:01:03.9]} 23. Qxf6 {[%clk 0:01:00.6]}
23... Bxf6 {[%clk 0:01:02.2]} 24. Nd7 {[%clk 0:01:01.3]} 24... Be7 {[%clk
0:00:52.9]} 25. Nxf8 {[%clk 0:01:01]} 25... Kxf8 {[%clk 0:00:40.8]} 26. Rxc8+
{[%clk 0:01:00.8]} 26... Bxc8 {[%clk 0:00:40.8]} 27. Rc1 {[%clk 0:01:01.7]}
27... Bb7 {[%clk 0:00:41]} 28. Rc7 {[%clk 0:01:00]} 28... f6 {[%clk 0:00:39.8]}
29. Bh6+ {[%clk 0:00:58.5]} 29... Kf7 {[%clk 0:00:39.9]} 30. b4 {[%clk
0:00:56.8]} 1-0

[Event "*** Titled Tuesday Blitz"]
[Site "Chess.com"]
[Date "2020.12.01"]
[Round "7"]
[White "IMTominho"]
[Black "Malev212"]
[Result "1-0"]
[WhiteElo "2756"]
[BlackElo "2561"]
[TimeControl "180+1"]
[EndTime "11:14:32 PST"]
[Termination "IMTominho won by resignation"]

1. d4 {[%clk 0:03:00.9]} 1... d5 {[%clk 0:02:49.4]} 2. c4 {[%clk 0:02:58.3]}
2... e6 {[%clk 0:02:49]} 3. Nc3 {[%clk 0:02:56.3]} 3... Be7 {[%clk 0:02:46.1]}
4. Nf3 {[%clk 0:02:56.1]} 4... Nf6 {[%clk 0:02:45.1]} 5. Bf4 {[%clk 0:02:56.6]}
5... O-O {[%clk 0:02:44.5]} 6. e3 {[%clk 0:02:54.6]} 6... Nbd7 {[%clk 0:02:44]}
7. Rc1 {[%clk 0:02:53.4]} 7... c6 {[%clk 0:02:35.6]} 8. h3 {[%clk 0:02:48.1]}
8... Ne4 {[%clk 0:02:34.6]} 9. a3 {[%clk 0:02:45.7]} 9... f5 {[%clk 0:02:28.2]}
10. Bh2 {[%clk 0:02:43.9]} 10... Nxc3 {[%clk 0:02:11.9]} 11. Rxc3 {[%clk
0:02:42.4]} 11... Nf6 {[%clk 0:02:12.4]} 12. Bd3 {[%clk 0:02:39.1]} 12... Ne4
{[%clk 0:02:06.8]} 13. Bxe4 {[%clk 0:02:38.4]} 13... fxe4 {[%clk 0:02:02.5]} 14.
Ne5 {[%clk 0:02:39.3]} 14... Bd7 {[%clk 0:01:53.8]} 15. O-O {[%clk 0:02:34.9]}
15... Be8 {[%clk 0:01:53.4]} 16. Qg4 {[%clk 0:02:29.9]} 16... Rf6 {[%clk
0:01:43.7]} 17. Bg3 {[%clk 0:02:20.7]} 17... h5 {[%clk 0:01:33.1]} 18. Qe2
{[%clk 0:02:18.3]} 18... g5 {[%clk 0:01:32.7]} 19. f4 {[%clk 0:02:16.5]} 19...
Bf8 {[%clk 0:00:49.1]} 20. Rcc1 {[%clk 0:02:03.5]} 20... Bg7 {[%clk 0:00:43.1]}
21. Rf2 {[%clk 0:01:49]} 21... Rf5 {[%clk 0:00:29.1]} 22. Rcf1 {[%clk
0:01:41.1]} 22... h4 {[%clk 0:00:24.5]} 23. Bh2 {[%clk 0:01:39.2]} 23... gxf4
{[%clk 0:00:22.9]} 24. Rxf4 {[%clk 0:01:36.5]} 24... Bh5 {[%clk 0:00:23.1]} 25.
Qf2 {[%clk 0:01:35.6]} 25... Bxe5 {[%clk 0:00:19.7]} 26. dxe5 {[%clk 0:01:31.7]}
26... Rxf4 {[%clk 0:00:14]} 27. Qxf4 {[%clk 0:01:29.8]} 27... Qe7 {[%clk
0:00:13.8]} 28. Qh6 {[%clk 0:01:24.1]} 1-0

[Event "*** Titled Tuesday Blitz"]
[Site "Chess.com"]
[Date "2020.12.01"]
[Round "7"]
[White "DarZay"]
[Black "ljuks68"]
[Result "1-0"]
[WhiteElo "2174"]
[BlackElo "2373"]
[TimeControl "180+1"]
[EndTime "11:14:32 PST"]
[Termination "DarZay won by resignation"]

1. e4 {[%clk 0:03:00.9]} 1... e6 {[%clk 0:02:59.4]} 2. d4 {[%clk 0:02:59.9]}
2... d5 {[%clk 0:02:59.8]} 3. e5 {[%clk 0:02:59.4]} 3... c5 {[%clk 0:02:59.3]}
4. c3 {[%clk 0:02:58.1]} 4... Nc6 {[%clk 0:02:59.6]} 5. Nf3 {[%clk 0:02:58.2]}
5... Qb6 {[%clk 0:03:00]} 6. a3 {[%clk 0:02:55.2]} 6... f6 {[%clk 0:02:57.8]} 7.
b4 {[%clk 0:02:51.7]} 7... c4 {[%clk 0:02:52.9]} 8. Bf4 {[%clk 0:02:25.7]} 8...
a5 {[%clk 0:02:42.2]} 9. Nbd2 {[%clk 0:02:10.5]} 9... axb4 {[%clk 0:02:07.6]}
10. axb4 {[%clk 0:02:08.1]} 10... Rxa1 {[%clk 0:02:03.3]} 11. Qxa1 {[%clk
0:02:08.1]} 11... g5 {[%clk 0:02:03.2]} 12. Be3 {[%clk 0:01:55.4]} 12... h6
{[%clk 0:01:56]} 13. Be2 {[%clk 0:01:53.7]} 13... f5 {[%clk 0:01:51.1]} 14. g3
{[%clk 0:01:46.3]} 14... Nge7 {[%clk 0:01:47.8]} 15. Bxc4 {[%clk 0:01:33.4]}
15... dxc4 {[%clk 0:01:35]} 16. Nxc4 {[%clk 0:01:33.4]} 16... Qc7 {[%clk
0:01:35]} 17. Nd6+ {[%clk 0:01:33.3]} 17... Kd7 {[%clk 0:01:34.5]} 18. Qa4
{[%clk 0:01:11.6]} 18... Nd5 {[%clk 0:01:16.7]} 19. b5 {[%clk 0:01:06.3]} 19...
Nb8 {[%clk 0:01:13.8]} 20. c4 {[%clk 0:00:34.4]} 20... Nb6 {[%clk 0:01:12]} 21.
Qa2 {[%clk 0:00:24.5]} 21... Bxd6 {[%clk 0:01:09.9]} 22. exd6 {[%clk 0:00:19.2]}
22... Qxc4 {[%clk 0:01:04]} 23. Ne5+ {[%clk 0:00:18.4]} 1-0

[Event "*** Titled Tuesday Blitz"]
[Site "Chess.com"]
[Date "2020.12.01"]
[Round "7"]
[White "MPGM"]
[Black "BillieKimbah"]
[Result "0-1"]
[WhiteElo "2661"]
[BlackElo "2856"]
[TimeControl "180+1"]
[EndTime "11:14:35 PST"]
[Termination "BillieKimbah won by resignation"]

1. d4 {[%clk 0:03:00.9]} 1... Nf6 {[%clk 0:02:55.7]} 2. c4 {[%clk 0:03:00.3]}
2... g6 {[%clk 0:02:55.8]} 3. Nc3 {[%clk 0:02:59.7]} 3... d5 {[%clk 0:02:56]} 4.
cxd5 {[%clk 0:02:59.7]} 4... Nxd5 {[%clk 0:02:55.8]} 5. e4 {[%clk 0:03:00.6]}
5... Nxc3 {[%clk 0:02:56]} 6. bxc3 {[%clk 0:03:01.5]} 6... Bg7 {[%clk
0:02:56.5]} 7. Bc4 {[%clk 0:02:59.8]} 7... O-O {[%clk 0:02:55.4]} 8. Ne2 {[%clk
0:03:00.4]} 8... c5 {[%clk 0:02:53.9]} 9. O-O {[%clk 0:03:00.4]} 9... Nc6 {[%clk
0:02:54.3]} 10. Be3 {[%clk 0:03:00.6]} 10... Bg4 {[%clk 0:02:53.5]} 11. f3
{[%clk 0:02:59]} 11... Bd7 {[%clk 0:02:53.7]} 12. Rb1 {[%clk 0:02:48.9]} 12...
Qc7 {[%clk 0:02:53.6]} 13. Qd2 {[%clk 0:02:23.6]} 13... Rfd8 {[%clk 0:02:47.8]}
14. Rfc1 {[%clk 0:02:00.3]} 14... Rac8 {[%clk 0:02:45.6]} 15. Bb5 {[%clk
0:01:36.5]} 15... Na5 {[%clk 0:02:26.7]} 16. Bxd7 {[%clk 0:01:12]} 16... Qxd7
{[%clk 0:02:27.1]} 17. d5 {[%clk 0:00:59.5]} 17... Nc4 {[%clk 0:02:19.2]} 18.
Qd3 {[%clk 0:00:59.6]} 18... b5 {[%clk 0:02:18]} 19. Bf2 {[%clk 0:00:52.7]}
19... Na3 {[%clk 0:02:17.2]} 20. Rb2 {[%clk 0:00:41.6]} 20... b4 {[%clk
0:02:17.1]} 21. Rd2 {[%clk 0:00:38.7]} 21... c4 {[%clk 0:02:15.4]} 22. Qe3
{[%clk 0:00:38.2]} 22... a5 {[%clk 0:02:12.9]} 23. Nd4 {[%clk 0:00:34.1]} 23...
Bxd4 {[%clk 0:02:08]} 24. Rxd4 {[%clk 0:00:30.9]} 24... Nb5 {[%clk 0:02:07.9]}
25. cxb4 {[%clk 0:00:31.1]} 25... Nxd4 {[%clk 0:02:06.1]} 26. Qxd4 {[%clk
0:00:31.7]} 26... axb4 {[%clk 0:02:05]} 27. Rxc4 {[%clk 0:00:32]} 27... Qb5
{[%clk 0:02:00.4]} 28. Rxc8 {[%clk 0:00:24.7]} 28... Rxc8 {[%clk 0:02:01.3]} 29.
h4 {[%clk 0:00:22.8]} 29... Qe2 {[%clk 0:01:59.6]} 30. h5 {[%clk 0:00:19.6]}
30... Qxa2 {[%clk 0:01:57]} 31. h6 {[%clk 0:00:18.4]} 31... f6 {[%clk
0:01:56.9]} 32. d6 {[%clk 0:00:17.3]} 32... Qe6 {[%clk 0:01:45]} 33. dxe7 {[%clk
0:00:16.8]} 33... Qxe7 {[%clk 0:01:45.4]} 34. Qd5+ {[%clk 0:00:12.7]} 34... Qf7
{[%clk 0:01:42.6]} 35. Qb5 {[%clk 0:00:13.1]} 35... b3 {[%clk 0:01:41.2]} 36.
Kh2 {[%clk 0:00:09.2]} 36... Qc4 {[%clk 0:01:39.8]} 37. Qb7 {[%clk 0:00:07.7]}
37... Qc7+ {[%clk 0:01:39.7]} 0-1